Cogmind - Beta 14 @@@ ROGUE MODE // 2024.11.03 @ 12:55:28 Player: Ae Result: Destroyed by Y-45 Defender with Heavy Assault Rifle Performance ------------- Evolutions (0) 0 Regions Visited (3) 600 Robots Destroyed (28) 140 Value Destroyed (626) 626 Prototype IDs (1) 20 Alien Tech Used (0) 0 Bonus (0) 0 TOTAL SCORE: 1386 Bonus ------- None Cogmind --------- Core Integrity 0/250 Matter 7/300 Energy 57/100 System Corruption 0% Temperature Warm (139) Movement Treading (480) Ox4 Location -9/Recycling Parts ------- > --- POWER (1) -------- (None) > --- PROPULSION (2) --- Light Treads > --- UTILITY (2) ------ Disposable Heat Sink Huge Storage Unit > --- WEAPON (2) ------- Improved Light Cannon Hammer > --- INVENTORY (25) --- Compact Wheel Subdweller Monowheel Subdweller Monowheel High-capacity Storage Unit Subdweller Optics Seismic Detector Scrap Shield Improved Assault Rifle Improved Assault Rifle Improved Assault Rifle Improved Light Cannon Grenade Launcher Datajack Peak State ------------ > --- POWER ------------ Light Ion Engine > --- PROPULSION ------- Light Treads Wheel > --- UTILITY ---------- Disposable Heat Sink Huge Storage Unit > --- WEAPON ----------- Subdweller Laser Beam Cannon > --- INVENTORY -------- Light Treads Compact Wheel Subdweller Monowheel Subdweller Monowheel High-capacity Storage Unit Subdweller Optics Seismic Detector Scrap Shield EM Pulse Gun Improved Assault Rifle Improved Assault Rifle Improved Assault Rifle Improved Light Cannon Improved Light Cannon Grenade Launcher Datajack Hammer [Rating: 12] Favorites ----------- Power Ion Engine Engine Ion Engine Propulsion Light Treads Treads Light Treads Leg Aluminum Leg Wheel Wheel Utility Seismic Detector Device Seismic Detector Storage High-capacity Storage Unit Protection Light Armor Plating Weapon Beam Cannon Energy Gun Subdweller Laser Energy Cannon Beam Cannon Ballistic Gun Assault Rifle Ballistic Cannon Improved Light Cannon Launcher Grenade Launcher Special Weapon Mining Laser Impact Weapon Hammer Special Melee Weapon Datajack Build | -11 -10 -10 -9 ------- Run | Yrd Mat Sub Rec Slots Evolved . | . . . . Power . | . . . . Propulsion . | . . . . Utility . | . . . . Weapon . | . . . . Parts Attached 46 | 8 18 15 5 Power 2 | 1 . 1 . Engine 2 | 1 . 1 . Core . | . . . . Reactor . | . . . . Propulsion 14 | 3 8 2 1 Treads 8 | . 6 1 1 Leg 4 | 2 2 . . Wheel 2 | 1 . 1 . Hover . | . . . . Flight . | . . . . Utility 11 | 2 4 5 . Device 5 | 1 2 2 . Storage 4 | 1 2 1 . Processor . | . . . . Hackware . | . . . . Protection 2 | . . 2 . Artifact . | . . . . Weapon 19 | 2 6 7 4 Energy Gun 4 | 1 . 1 2 Energy Cannon 1 | . 1 . . Ballistic Gun 2 | 1 1 . . Ballistic Cannon 2 | . 1 . 1 Launcher 3 | . 1 2 . Special Weapon 2 | . 1 1 . Impact Weapon 4 | . 1 2 1 Slashing Weapon . | . . . . Piercing Weapon . | . . . . Special Melee Weapon 1 | . . 1 . Unidentified Prototypes 1 | . 1 . . Parts Lost 12 | . 1 5 6 Power 2 | . . 1 1 Propulsion 3 | . . 1 2 Utility 2 | . 1 1 . Weapon 5 | . . 2 3 Highest Loss Streak 8 | . 1 2 8 To Critical Strikes . | . . . . Average Slot Usage (%) 96 | . 96 98 85 Engine 13 | . 14 13 7 Treads 20 | . 22 16 21 Leg 3 | . 5 . . Wheel 2 | . . 10 3 Device 10 | . 10 11 14 Storage 14 | . 14 14 14 Energy Gun 1 | . . 3 14 Energy Cannon 9 | . 8 14 3 Ballistic Gun 1 | . 2 . . Ballistic Cannon 5 | . 5 5 7 Special Weapon 4 | . 5 . . Impact Weapon 5 | . 6 2 . Peak Build Rating 12 | 7 11 11 12 Average Rating 8 | 5 8 10 10 On Entrance 6 | . 7 10 10 Naked Turns . | . . . . Heaviest Build 93 | 14 53 93 91 Greatest Support 40 | 20 40 40 20 Greatest Overweight (x) 9 | . 2 9 9 Average Overweight (x) 2 | . . 6 7 Largest Inventory Capacity 25 | 8 25 25 25 Average Capacity 19 | 7 18 23 25 Most Carried 21 | 7 20 21 19 Average Carried 15 | 4 14 19 16 Final Capacity 25 | 8 20 25 25 Final Carried 20 | 7 20 19 14 Class Distribution -------------------- 100% | Mutant Dominant Class ---------------- Mutant | -10/Materials Mutant | -10/Subcaves Mutant | -9/Recycling Resources | -11 -10 -10 -9 ----------- Run | Yrd Mat Sub Rec Matter Collected 665 | 310 251 104 . Remotely . | . . . . Salvage Created 727 | 201 377 89 60 Parts 40 | 16 13 6 5 Haulers Intercepted 2 | . 2 . . Recyclers Shooed 2 | 1 1 . . Parts Field Recycled . | . . . . Retrieved Matter . | . . . . Parts Self-Destructed 6 | . . 6 . Prevented . | . . . . Kills | -11 -10 -10 -9 ------- Run | Yrd Mat Sub Rec Combat Hostiles Destroyed 15 | . 7 7 1 Melee 1 | . . 1 . Guns 1 | . . . 1 Cannons 8 | . 5 3 . AOE 3 | . . 3 . Classes Destroyed 9 | 2 3 3 1 Tunneler 6 | 5 1 . . Hauler 2 | . 2 . . Recycler 1 | 1 . . . Turret 2 | . . 2 . Watcher 2 | . 2 . . Swarmer 4 | . . 4 . Grunt 7 | . 7 . . Sentry 1 | . . . 1 Subdweller 3 | . . 3 . Best Kill Streak 6 | 6 3 4 1 Combat Bots Only 4 | . 2 4 1 Max Kills in Single Turn 3 | 1 1 3 1 Gunslinging . | . . . . Exploded 3 | . . 3 . Melee 1 | . . 1 . Uniques/NPCs Destroyed . | . . . . Combat | -11 -10 -10 -9 -------- Run | Yrd Mat Sub Rec Hostile Shots Fired 160 | . 33 75 52 Missed 41 | . 5 25 11 Damage Taken 1739 | . 341 789 609 Core 260 | . 60 94 106 Absorbed by Shields . | . . . . Core Remaining (%) 100 | 100 . . . Volleys Fired 108 | 10 49 35 14 Largest 2 | 2 1 2 2 Hottest 120 | 60 100 120 120 Shots Fired 136 | 20 49 50 17 Gun 35 | 20 . 1 14 Cannon 57 | . 25 29 3 Launcher 20 | . 2 18 . Special 24 | . 22 2 . Kinetic 42 | 10 18 14 . Thermal 64 | 10 29 18 7 Explosive 20 | . 2 18 . Electromagnetic 10 | . . . 10 Robot Hit Streak 10 | 7 6 10 5 Robot Miss Streak 4 | 4 3 1 2 Penetration Max . | . . . . Secondary Targets . | . . . . Shots Hit Robots 75 | 10 28 25 12 Core Hits 45 | 7 10 24 4 Critical Kills . | . . . . Critical Parts Destroyed 4 | . 4 . . Critical Strikes 4 | . 4 . . Smash 4 | . 4 . . Melee Attacks 23 | . 15 8 . Impact 22 | . 15 7 . Slashing . | . . . . Piercing . | . . . . Sneak Attacks 2 | . 2 . . Combat Hostiles . | . . . . Follow-up Attacks . | . . . . Damage Inflicted 2097 | 120 794 1019 164 Guns 250 | 120 . . 130 Cannons 821 | . 379 408 34 Explosions 713 | . 148 565 . Melee 289 | . 243 46 . Ramming . | . . . . Kinetic 560 | 34 274 252 . Thermal 447 | 86 129 156 76 Explosive 713 | . 148 565 . Electromagnetic 88 | . . . 88 Impact 289 | . 243 46 . Slashing . | . . . . Piercing . | . . . . Highest Corruption . | . . . . Average Corruption . | . . . . Corruption Purged . | . . . . Corruption Blocked . | . . . . Overload Shots . | . . . . Overflow Damage 218 | . 176 42 . Projectiles . | . . . . Explosions 42 | . . 42 . Melee 176 | . 176 . . Knockbacks 4 | . 2 2 . Impact . | . . . . Kinetic 4 | . 2 2 . Secondary . | . . . . Self-Inflicted Damage 60 | . 10 50 . Shots 3 | . 1 2 . Rammed . | . . . . Targets Rammed . | . . . . Kicked . | . . . . Crushed . | . . . . Highest Temperature 286 | 2 185 286 199 Average Temperature 67 | 2 39 142 159 Received Heat Transfer 856 | . 186 418 252 Siege Activations . | . . . . Robots Corrupted 4 | . 4 . . Combat Hostiles 2 | . 2 . . Parts Fried 11 | . 10 . 1 Impact Corruptions 7 | . 7 . . Robots Melted . | . . . . Combat Hostiles . | . . . . Parts Melted 1 | . . 1 . Heat Transferred 929 | 200 272 333 124 Parts Sabotaged . | . . . . Parts Stolen . | . . . . Parts Stripped . | . . . . Power Chain Reactions . | . . . . Alert | -11 -10 -10 -9 ------- Run | Yrd Mat Sub Rec Peak Influence 144 | 30 89 . 144 Initial 144 | . 19 . 144 Average 37 | 15 37 . 121 Maximum Alert Level . | . . . . Low Security (%) 100 | 100 100 . 100 Level 1 . | . . . . Level 2 . | . . . . Level 3 . | . . . . Level 4 . | . . . . Level 5 . | . . . . High Security . | . . . . Max Security . | . . . . Squads Dispatched 1 | . 1 . . Investigation . | . . . . Extermination . | . . . . Reinforcement 1 | . 1 . . Assault . | . . . . Garrison . | . . . . Intercept . | . . . . Searches Triggered . | . . . . Construction Impeded . | . . . . Haulers Reinforced . | . . . . Active Scanning Responses . | . . . . Cargo Convoy Interrupts . | . . . . Stealth | -11 -10 -10 -9 --------- Run | Yrd Mat Sub Rec Distress Signals 1 | . 1 . . Communications Jammed . | . . . . Distress Signals . | . . . . Times Spotted 35 | . 16 16 3 Peak Tracking Total 6 | . 3 6 3 Tactical Retreats 4 | . . 4 . Traps | -11 -10 -10 -9 ------- Run | Yrd Mat Sub Rec Traps Triggered . | . . . . Indirectly . | . . . . Trap Hack Attempts . | . . . . Triggered . | . . . . Disarmed . | . . . . Reprogrammed . | . . . . Reused . | . . . . Traps Extracted . | . . . . Installed . | . . . . Triggered . | . . . . Machines | -11 -10 -10 -9 ---------- Run | Yrd Mat Sub Rec Machines Disabled 3 | . . 3 . Max in Single Turn 2 | . . 2 . Machines Repaired . | . . . . Machines Dismantled . | . . . . Machines Sabotaged . | . . . . Overloaded Fab Kills . | . . . . Hacking | -11 -10 -10 -9 --------- Run | Yrd Mat Sub Rec Machines Accessed 5 | . 4 1 . Terminals 1 | . 1 . . Fabricators . | . . . . Repair Stations 1 | . 1 . . Recycling Units 2 | . 2 . . Scanalyzers . | . . . . Garrison Access . | . . . . Total Hacks 12 | . 9 3 . Successful 7 | . 4 3 . Failed 5 | . 5 . . Catastrophic . | . . . . Database Lockouts . | . . . . Manual 7 | . 7 . . Terminals 4 | . 4 . . Fabricators . | . . . . Repair Stations 2 | . 2 . . Recycling Units 3 | . 3 . . Scanalyzers . | . . . . Garrison Access . | . . . . Terminal Hacks 3 | . . 3 . Record 3 | . . 3 . Fabricator Hacks . | . . . . Repair Station Hacks 1 | . 1 . . Refit 1 | . 1 . . Recycling Unit Hacks . | . . . . Scanalyzer . | . . . . Garrison Access Hacks . | . . . . Unauthorized Hacks 3 | . 3 . . Terminals 2 | . 2 . . Botnet 1 | . 1 . . Skim 1 | . 1 . . Fabricators . | . . . . Repair Stations . | . . . . Recycling Units 1 | . 1 . . Monitor 1 | . 1 . . Scanalyzers . | . . . . Garrison Access . | . . . . Data Cores Recovered . | . . . . Used . | . . . . Hacking Detections 4 | . 4 . . Full Trace Events . | . . . . Feedback Events . | . . . . Feedback Blocked . | . . . . Robot Schematics Acquired . | . . . . Robots Built . | . . . . Authchips . | . . . . Time . | . . . . Total Robot Build Rating . | . . . . Part Schematics Acquired . | . . . . Parts Built . | . . . . Authchips . | . . . . Time . | . . . . Total Part Build Rating . | . . . . Parts Repaired . | . . . . Time . | . . . . Parts Recycled . | . . . . Recycled Matter . | . . . . Retrieved Matter . | . . . . Retrieved Components . | . . . . Parts Scanalyzed . | . . . . Part Schematics Acquired . | . . . . Parts Damaged . | . . . . Bothacking | -11 -10 -10 -9 ------------ Run | Yrd Mat Sub Rec Used RIF Installer . | . . . . Robots Hacked 1 | . . 1 . Non-combat . | . . . . Combat 1 | . . 1 . Robot Hacks Applied 1 | . . 1 . parse_system 1 | . . 1 . Relay Couplers Released . | . . . . Fabnet Peak Effective % . | . . . . Robots Rewired . | . . . . Allies Hacked . | . . . . Hacks Repelled . | . . . . Allies | -11 -10 -10 -9 -------- Run | Yrd Mat Sub Rec Total Allies . | . . . . Largest Group . | . . . . Highest-Rated Group . | . . . . Highest-Rated Ally . | . . . . Total Orders . | . . . . Ally Attacks . | . . . . Total Damage . | . . . . Kills . | . . . . Allies Corrupted . | . . . . Allies Melted . | . . . . Intel | -11 -10 -10 -9 ------- Run | Yrd Mat Sub Rec Robot Analysis Total . | . . . . Derelict Logs Recovered . | . . . . Drone Launches . | . . . . Drone Recoveries . | . . . . Exploration | -11 -10 -10 -9 ------------- Run | Yrd Mat Sub Rec Turns Passed 3275 | 136 2244 852 43 Spaces Moved 1284 | 76 877 328 3 Core 1 | 1 . . . Treads 775 | . 692 82 1 Legs 252 | 67 185 . . Wheels 256 | 8 . 246 2 Hover . | . . . . Flight . | . . . . Fastest Speed 50 | 50 120 200 200 Average Speed 217 | 114 226 216 298 Slowest Speed 480 | 120 260 240 480 Overloaded Moves . | . . . . Propulsion Burnouts . | . . . . Robots Hopped . | . . . . Cave-ins Triggered . | . . . . Exploration Rate (%) 32 | 4 99 26 2 Regions Visited 3 Branch Regions 2 Pre-discovered Areas . | . . . . Known Exits Taken . | . . . . Unknown Exits Taken 3 | 1 1 1 . Scrap Searched 3 | . . 3 . Spaces Dug 19 | . 19 . . Terrain Destroyed 87 | . 32 55 . Melee 3 | . 3 . . Projectile 21 | . 21 . . AOE 63 | . 8 55 . Terrain Rammed . | . . . . Walls Destroyed . | . . . . Machines Disabled . | . . . . Actions | -11 -10 -10 -9 --------- Run | Yrd Mat Sub Rec Total 1544 | 100 1021 401 22 Wait 34 | . 29 5 . Move 1281 | 75 876 327 3 Hop . | . . . . Pick Up 33 | 7 20 6 . Fast Attach 9 | 7 2 . . Attach 10 | . . 5 5 Detach 3 | . 2 1 . Swap 27 | 1 16 10 . Drop 16 | . 12 4 . Fire 108 | 10 49 35 14 Melee 23 | . 15 8 . Ram . | . . . . Kick . | . . . . Crush . | . . . . Escape Stasis . | . . . . Rewire . | . . . . Trap . | . . . . Miscellaneous . | . . . . Route ------- -11/Scrapyard -10/Materials (discovered 5 exits: [*Mat x3] / [*Min] / *Sub) -10/Subcaves -9/Recycling History --------- Turn | Location | Event 13 | -11/Scrapyard | Discovered new exit (range 16) 137 | -11/Scrapyard | Entered Materials 305 | -10/Materials | Build established: Mutant 600 | -10/Materials | Discovered new exit (range 3) 733 | -10/Materials | Discovered new exit (range 9) 829 | -10/Materials | Discovered new exit (range 16) 1329 | -10/Materials | Discovered new exit (range 5) 2364 | -10/Materials | Discovered new exit (range 8) 2381 | -10/Materials | Entered Subcaves 2421 | -10/Subcaves | A swath of the cavern ceiling suddenly collapsed 2862 | -10/Subcaves | Visited Clippyterm 2869 | -10/Subcaves | Learned Factory garrison access intel 3104 | -10/Subcaves | Discovered new exit (range 13) 3120 | -10/Subcaves | Core integrity fell below 50% 3157 | -10/Subcaves | Ambushed by Subdweller buried in earth 3233 | -10/Subcaves | Entered Recycling 3268 | -9/Recycling | Core integrity fell below 20% 3276 | -9/Recycling | Destroyed by Y-45 Defender with Heavy Assault Rifle Last Messages --------------- 03209_ The unstable cave ceiling collapses. 03217_ Lgt. Armor Plating destroyed. 03223_ VR-7W9(R): "ARGHSUB!" 03228_ Grenade Launcher destroyed. LOCATION=UNKNOWN GOAL=ESCAPE 03237_ Y-45 Defender springs to life. 03246_ Beam Cannon destroyed. 03246_ Critical hit (Burn: +37). 03246_ Wheel destroyed. 03250_ Sub. Laser destroyed. 03252_ Critical hit (Burn: +37). 03259_ Lgt. Ion Engine destroyed. 03266_ Critical hit (Burn: +37). 03267_ Heat Sink fried. 03267_ Y-45 Defender destroyed. 03269_ Critical hit (Burn: +37). 03270_ Lgt. Treads destroyed. 03272_ EM Pulse Gun destroyed. 03275_ R-06 Scavenger collects Corrupted Heat Sink. Map ----- +----------------------------------------------------+ | ?????????????????????????????????????????????????? | | ?????????????????????????????????????????????????? | | ?????????????????????????????????????????????????? | | ?????????????????????????????????????????????????? | | ?????????????????????????????????????????????????? | | ?????????????????????????????????????????????????? | | ?????????????????????????????????????????????????? | | ?????????????????????????????????????????????????? | | ?????????????????????????????????????????????????? | | ?????????????????????????????????????????????????? | | ???????????????????????? ?????????????????????? | | ???????????????????????? #????????????????????? | | ???????????????????????# +????????????????????? | | ???????????????????????# #????????????????????? | | ???????????????????????# #????????????????????? | | ???????????????????????# #????????????????????? | | ???????????????????????# r #????????????????????? | | ???????????????????????# #????????????????????? | | ???????????????????????# #????????????????????? | | ???????????????????????# #????????????????????? | | ???????????????????????# #????????????????????? | | ???????????????????????? r #????????????????????? | | ???????????????????????? #????????????????????? | | ????????????????????????#%Y ##???????????????????? | | ????????????????????????#*[ Y#???????????????????? | | ????????????????????????#@ #????????????????????? | | ????????????????????????# #????????????????????? | | ????????????????????????# #????????????????????? | | ????????????????????????#####????????????????????? | | ?????????????????????????????????????????????????? | | ?????????????????????????????????????????????????? | | ?????????????????????????????????????????????????? | | ?????????????????????????????????????????????????? | | ?????????????????????????????????????????????????? | | | | | | | | | | | | | | | | | | | | | | | | | | | | | | | | | +----------------------------------------------------+ Best States ------------- Heat Dissipation 25 Coolant Potential 50 Energy Generation 10 Energy Capacity 250 Matter Stores 300 Matter Capacity 300 Sight Range 16 Terrain Scan Density 10 Armor Coverage 150 Evasion (%) 55 Recoil Reduction 2 Item Schematics ----------------- None Robot Schematics ------------------ None Fabricated ------------ Nothing Alien Tech Used ----------------- None Achievements -------------- None Challenges ------------ None Game ------ Seed CoilAntimissileChainsword Manual? 0 Play Time 00:27:20 Cumulative 89.5 hours Start 2024.11.03 @ 12:20:35 End 2024.11.03 @ 12:55:28 Sessions 1 Manual Loads 0 Difficulty Rogue Special Mode None Game No. 151 Rogue 123 Adventurer 28 Explorer 0 Win Type - Total 0 Types 0/0/0/0/0/0/0/0/0 Lore% 32 Gallery% 31 Achievement% 33 Wizard Run 0 Options --------- Layout 0 ASCII 0 Keyboard 1 Movement Numpad Keybinds 0 Fullscreen 2 Font 36/Smallcaps Map View 76x50 Zoom Use 0% Tactical HUD 1 Map Filters NONE Filters NONE Steam 1 RUN: 1455079b-0ed4-4511-b1d1-4282961799e7